bitfinex-derivatives/quotes_ETHF0:USTF0_20251028
["timestamp","ask_amount","ask_price","bid_price","bid_amount"]
[1761630546113,42.63812403,4081.5,4081.4,0.5425]
[1761630546312,42.63812403,4081.5,4081.4,0.318]
[1761630546506,42.30282403,4081.5,4081.1,0.3454]
[1761630546711,0.4417,4081.2,4081.1,0.5717]
[1761630546908,0.4417,4081.2,4081.1,0.7971]
[1761630547410,0.2253,4081.2,4081.1,0.7971]
[1761630547609,0.336,4081.1,4081.0,0.3184]
[1761630547802,1.48954246,4081.1,4081.0,0.9089]
[1761630548200,2.03584246,4081.1,4081.0,0.9089]
[1761630548399,0.7671,4080.7,4080.6,0.00231009]
[1761630548606,2.03584246,4080.7,4080.6,0.00231009]
[1761630549007,42.83584246,4080.7,4080.6,0.00231009]
[1761630549310,0.7671,4080.0,4079.9,0.3184]
[1761630549613,2.03584246,4080.0,4079.9,0.3184]
[1761630550004,1.69984246,4080.0,4079.9,0.5475]
[1761630550209,1.69984246,4080.0,4079.9,0.7751]
[1761630550411,1.69984246,4080.0,4079.9,0.77826812]
[1761630551711,0.4311,4080.0,4079.9,0.77826812]
[1761630552311,0.7671,4080.0,4079.9,0.77826812]
[1761630552915,0.4311,4080.0,4079.9,0.77826812]
[1761630553814,0.874,4080.0,4079.9,0.00316812]
[1761630554421,41.674,4080.0,4079.9,0.00316812]
[1761630554811,41.5671,4080.0,4079.9,0.00316812]
[1761630555116,41.5671,4080.0,4079.9,0.55066812]
[1761630555616,41.5671,4080.0,4079.9,0.00316812]
[1761630556008,41.674,4080.0,4079.9,0.00316812]
[1761630557317,41.5671,4080.0,4079.9,0.00316812]
[1761630559810,45.27079335,4080.0,4079.9,0.00316812]
[1761630561323,41.0208,4080.0,4079.9,0.77826812]
[1761630562220,41.3568,4080.0,4079.9,0.55066812]
[1761630562422,41.3568,4080.0,4079.9,0.32156812]
[1761630562618,41.3568,4080.0,4079.9,0.55066812]
[1761630562824,41.0208,4080.0,4079.9,0.77826812]
[1761630563224,41.3568,4080.0,4079.9,0.77826812]
[1761630563426,41.3568,4080.0,4079.9,0.55066812]
[1761630563920,41.3568,4080.0,4079.9,0.00316812]
[1761630564121,41.3568,4080.0,4079.9,0.55066812]
[1761630564323,45.06049335,4080.0,4079.9,0.00316812]
[1761630564519,45.16739335,4080.0,4079.9,0.00316812]
[1761630564826,45.16739335,4080.0,4079.9,0.00040824]
[1761630565123,0.2208,4078.2,4077.9,1.76114319]
[1761630565421,0.7671,4077.6,4077.5,0.4567]
[1761630565926,40.8,4077.9,4077.8,0.4567]
[1761630566128,40.8019622,4077.9,4077.8,0.45963379]
[1761630566321,0.0019622,4077.9,4077.8,0.45963379]
[1761630566521,0.2227622,4077.9,4077.8,0.45963379]
[1761630566923,0.5587622,4077.9,4077.8,0.45963379]
[1761630567228,0.5587622,4077.9,4077.8,0.77803379]
[1761630567625,0.7690622,4077.9,4077.8,0.77803379]
[1761630568825,0.0019622,4077.9,4077.8,0.77803379]
[1761630572145,0.2208,4078.9,4078.8,0.7751]
[1761630572443,41.0208,4078.9,4078.8,0.7751]
[1761630572942,41.3568,4078.9,4078.8,0.7751]
[1761630573145,41.3594529,4078.9,4078.8,0.7751]
[1761630574440,41.0234529,4078.9,4078.8,1.21641]
[1761630574843,40.8026529,4078.9,4078.8,0.7751]
[1761630575145,0.2241529,4078.9,4078.8,0.7751]
[1761630575443,0.7646529,4078.9,4078.8,0.7751]
[1761630576938,0.0026529,4078.9,4078.8,0.7751]
[1761630579350,0.0026529,4078.9,4078.8,1.21641]
[1761630581545,1.82039423,4080.0,4079.9,0.7709]
[1761630582046,42.62039423,4080.0,4079.9,0.7709]
[1761630582247,40.8,4080.0,4079.9,0.7709]
[1761630582448,0.5524,4080.3,4080.2,0.7709]
[1761630582751,0.5524,4080.6,4080.5,0.8968]
[1761630582950,41.35507381,4080.6,4080.5,0.8968]
[1761630583252,0.00267381,4080.6,4080.5,0.8968]
[1761630585146,0.3309,4080.5,4080.2,0.3181]
[1761630585348,0.762,4080.3,4080.2,0.5417]
[1761630585750,0.762,4080.3,4080.2,0.7709]
[1761630586352,0.762,4079.3,4079.2,0.5417]
[1761630586550,0.2096,4079.0,4078.9,0.5417]
[1761630586751,0.762,4079.0,4078.9,0.5417]
[1761630587446,40.8,4079.2,4079.0,0.3181]
[1761630587660,41.1309,4079.2,4079.1,0.7709]
[1761630587959,0.762,4079.1,4079.0,0.2236]
[1761630588160,0.762,4079.1,4079.0,0.5417]
[1761630588551,0.762,4079.1,4079.0,0.7709]
[1761630589754,0.762,4079.1,4079.0,0.2236]
[1761630590863,40.8,4079.2,4079.0,0.4528]
[1761630591063,40.8,4079.2,4079.1,0.7709]
[1761630591562,41.1309,4079.2,4079.1,0.7709]
[1761630592558,40.8,4079.2,4079.1,0.7709]
[1761630592865,0.2215,4079.6,4079.2,0.3181]
[1761630593161,0.4311,4079.5,4079.4,0.7709]
[1761630593363,41.2311,4079.5,4079.4,0.7709]
[1761630593660,41.562,4079.5,4079.4,0.7709]
[1761630593861,41.6957,4079.5,4079.4,0.2236]
[1761630594858,41.6957,4079.5,4079.4,0.5417]
[1761630595670,41.6957,4079.5,4079.4,0.2236]
[1761630596660,41.6957,4079.5,4079.2,0.3181]
[1761630596864,0.762,4079.1,4079.0,0.8968]
[1761630598070,0.762,4079.1,4079.0,0.7709]
[1761630599262,0.2215,4079.1,4079.0,0.8968]
[1761630599558,0.762,4079.1,4079.0,0.2236]
[1761630599763,0.762,4079.1,4079.0,0.7709]
[1761630599959,41.1309,4079.5,4079.1,0.3181]
[1761630600160,41.1309,4079.5,4079.4,0.7709]
[1761630600758,41.2646,4079.5,4078.9,1.63449083]
[1761630600962,41.2646,4079.5,4078.5,0.1259]
[1761630600963,0.4311,4079.1,4079.0,0.5417]
[1761630601164,0.4311,4079.1,4079.0,0.7709]
[1761630601464,0.762,4079.1,4079.0,0.7709]
[1761630602861,0.762,4078.9,4078.8,0.3181]
[1761630603063,0.4311,4078.7,4078.6,0.7709]
[1761630603368,0.5648,4078.5,4078.4,1.31639083]
[1761630603560,0.762,4078.4,4078.3,1.53999083]
[1761630603961,0.762,4078.4,4078.3,1.85809083]
[1761630604360,0.762,4078.4,4078.3,1.53999083]
[1761630604561,0.762,4078.4,4078.2,1.31639083]
[1761630604766,0.7731,4078.2,4078.1,0.2235]
[1761630605167,0.1337,4078.5,4077.9,0.2235]
[1761630605168,0.9035,4078.0,4077.9,0.2235]
[1761630605369,0.9035,4078.0,4077.9,0.5625]
[1761630605771,0.9035,4078.0,4077.9,0.2235]
[1761630606669,0.7731,4077.9,4077.8,0.00293379]
[1761630608674,41.5731,4077.9,4077.8,0.00293379]
[1761630609766,45.27488304,4077.9,4077.8,0.00293379]
[1761630613069,0.7681,4076.6,4076.5,0.5334]
[1761630613273,0.7681,4076.6,4076.2,0.44158]
[1761630613572,0.7681,4076.3,4076.2,0.5334]
[1761630613781,0.7681,4076.3,4076.2,0.2185]
[1761630614076,0.76995413,4076.3,4076.2,0.22146081]
[1761630614678,0.76995413,4076.3,4076.2,0.00296081]
[1761630615473,0.7681,4075.4,4075.3,0.7605]
[1761630615671,0.3299,4075.3,4074.8,0.4456]
[1761630615876,0.7681,4074.9,4074.8,0.7605]
[1761630616379,0.7681,4074.9,4074.8,0.76320892]
[1761630620675,0.4382,4075.3,4075.2,0.4456]
[1761630620875,0.4382,4075.3,4075.2,0.7605]
[1761630621083,0.7681,4075.3,4075.2,0.7605]
[1761630621280,3.83718304,4076.0,4075.3,0.3149]
[1761630621281,0.3299,4075.8,4075.3,0.3149]
[1761630621578,0.7681,4076.2,4076.1,0.7605]
[1761630621770,0.3299,4076.1,4075.6,0.3149]
[1761630621975,0.7681,4076.1,4076.0,0.7605]
[1761630622869,0.4382,4076.1,4076.0,0.8953]
[1761630623783,0.7681,4076.1,4076.0,0.8953]
[1761630623975,0.7681,4076.1,4076.0,0.7605]
[1761630624986,40.8,4076.2,4076.1,0.3149]
[1761630625286,40.8,4076.2,4076.1,0.7605]
[1761630625788,0.4653,4077.0,4076.2,1.20209]
[1761630626078,0.3299,4076.7,4076.2,0.7605]
[1761630626286,0.22325413,4076.3,4076.2,0.7605]
[1761630626479,0.22325413,4076.3,4074.8,0.00270892]
[1761630626480,0.7681,4074.9,4074.8,0.00270892]
[1761630626985,41.5681,4074.9,4074.8,0.00270892]
[1761630628379,41.5681,4074.9,4074.8,0.76320892]
[1761630628586,41.0214,4074.9,4074.8,0.76320892]
[1761630628878,41.3513,4074.9,4074.8,0.00270892]
[1761630633586,41.3513,4074.9,4074.8,0.53610892]
[1761630633787,41.3513,4074.9,4074.8,0.76320892]
[1761630634278,41.0214,4074.9,4074.8,0.76320892]
[1761630634980,41.3519,4074.9,4074.8,0.00270892]
[1761630639483,0.3305,4074.8,4073.4,0.57149]
[1761630639687,0.3305,4074.8,4073.5,0.76728]
[1761630639888,0.2215,4073.6,4073.5,0.7705]
[1761630640090,0.552,4073.6,4073.5,0.7705]
[1761630640285,0.3305,4074.4,4073.6,0.3254]
[1761630640587,0.3305,4074.4,4074.3,0.7705]
[1761630640588,0.552,4074.4,4074.3,0.7705]
[1761630640889,0.552,4074.4,4073.9,0.44184]
[1761630640890,0.3305,4074.3,4073.9,0.2196]
[1761630641084,0.7619,4074.1,4074.0,0.545]
[1761630641782,0.3305,4074.5,4074.1,0.3254]
[1761630641987,0.4314,4074.5,4074.4,0.2196]
[1761630642293,0.4314,4074.5,4074.4,0.545]
[1761630642591,0.2215,4073.9,4073.8,0.545]
[1761630642791,0.7619,4073.9,4073.8,0.7705]
[1761630643089,0.3305,4074.4,4073.9,0.3254]
[1761630643283,0.7619,4074.4,4074.3,0.545]
[1761630643985,0.7619,4074.4,4074.0,0.545]
[1761630644188,0.4314,4074.1,4074.0,0.2196]
[1761630644483,0.7619,4074.1,4074.0,0.7705]
[1761630646592,0.552,4073.8,4073.7,0.545]
[1761630646782,0.2215,4073.8,4073.7,0.7705]
[1761630646988,0.7619,4074.2,4074.1,0.2196]
[1761630647782,0.4314,4074.7,4074.6,0.2196]
[1761630648198,0.4314,4074.7,4074.3,0.3254]
[1761630648393,0.5404,4074.5,4074.4,0.545]
[1761630648587,0.7619,4074.5,4074.4,0.545]
[1761630648987,0.7619,4074.5,4074.4,0.2196]
[1761630649387,0.8929,4074.5,4074.4,0.2196]
[1761630649591,0.8929,4074.5,4074.1,0.3254]
[1761630649789,0.3305,4074.4,4073.8,0.3254]
[1761630649994,0.2215,4074.0,4073.9,0.7705]
[1761630650587,0.3305,4074.3,4074.0,0.3254]
[1761630650794,0.552,4074.2,4074.1,0.4451]
[1761630651094,0.7619,4074.2,4074.1,0.7705]
[1761630651292,41.1305,4074.9,4074.8,0.2196]
[1761630651492,0.2215,4074.6,4074.5,1.21227]
[1761630651792,0.7619,4074.6,4074.5,0.7705]
[1761630651982,0.7619,4074.1,4074.0,0.545]
[1761630652186,0.7619,4074.1,4074.0,0.7705]
[1761630652589,0.7619,4074.1,4074.0,0.2196]
[1761630652893,0.7619,4074.1,4074.0,0.7705]
[1761630653089,0.552,4074.4,4074.3,0.4451]
[1761630653302,0.552,4074.4,4074.3,0.7705]
[1761630654096,0.2215,4074.4,4074.3,0.7705]
[1761630654289,40.8,4074.9,4074.7,0.7705]
[1761630654290,0.2215,4074.8,4074.7,0.7705]
[1761630654790,0.2215,4074.8,4074.7,1.21225]
[1761630654997,40.8,4074.9,4074.8,1.21224]
[1761630655192,40.8,4074.9,4074.8,0.7705]
[1761630655496,40.8,4074.9,4074.8,1.21224]
[1761630655897,0.552,4075.2,4075.1,1.21221]
[1761630656092,0.2215,4075.2,4075.1,1.21221]
[1761630656291,0.3305,4075.9,4075.3,0.3254]
[1761630656494,0.7619,4075.4,4075.3,0.7705]
[1761630656695,0.7619,4075.4,4075.3,0.2196]
[1761630656900,0.3305,4075.3,4075.0,0.2196]
[1761630657197,0.7619,4075.1,4075.0,0.545]
[1761630657792,0.3305,4075.7,4075.3,0.3254]
[1761630658100,0.7619,4075.7,4075.6,0.2196]
[1761630659203,0.7619,4075.7,4075.6,0.7705]
[1761630659997,0.7619,4075.7,4075.6,0.2196]
[1761630660196,0.7619,4075.3,4075.2,0.7705]
[1761630660592,0.4314,4074.7,4074.6,0.545]
[1761630660791,0.7619,4074.7,4074.6,0.545]
[1761630661091,0.5404,4074.6,4074.5,0.2196]
[1761630661292,0.7619,4074.6,4074.5,0.545]
[1761630661993,0.7619,4074.6,4074.1,1.76114319]
[1761630661994,0.7619,4074.2,4074.1,1.76114319]
[1761630662190,0.7619,4074.2,4073.6,2.17530317]
[1761630662191,0.4314,4073.7,4073.6,0.00194641]
[1761630662395,0.7619,4073.7,4073.6,0.22154641]
[1761630662699,41.5619,4073.7,4073.6,0.00194641]
[1761630663900,0.3305,4073.6,4073.1,0.67209372]
[1761630664098,0.7619,4073.6,4073.5,0.2196]
[1761630664598,40.8,4073.7,4073.5,0.4451]
[1761630664798,0.4547,4073.5,4073.0,0.1331]
[1761630665108,0.3155,4073.4,4073.0,0.002395]
[1761630665306,0.5437,4073.1,4073.0,0.428895]
[1761630665806,0.7562,4073.1,4073.0,0.428895]
[1761630666302,0.7562,4073.1,4073.0,0.772295]
[1761630667104,0.2282,4073.1,4073.0,0.772295]
[1761630667605,0.7752,4073.1,4073.0,0.551295]
[1761630667801,0.7752,4073.1,4073.0,0.782395]
[1761630667997,0.2282,4073.1,4073.0,0.782395]
[1761630668303,0.7752,4073.1,4073.0,0.460295]
[1761630668508,0.7752,4073.1,4073.0,0.782395]
[1761630670106,0.7752,4073.1,4073.0,0.002395]
[1761630671507,0.7752,4073.1,4073.0,0.782395]
[1761630671702,0.2282,4073.1,4073.0,0.782395]
[1761630671913,41.0282,4073.1,4073.0,0.782395]
[1761630672110,41.3558,4073.1,4073.0,0.782395]
[1761630673007,41.3558,4073.1,4073.0,0.460295]
[1761630673603,0.2266,4074.0,4073.9,0.4579]
[1761630673904,0.5825,4074.0,4073.9,0.2268]
[1761630674405,0.446,4074.0,4073.9,0.5489]
[1761630674603,0.44832549,4074.0,4073.9,0.78]
[1761630674800,0.22892549,4074.0,4073.9,0.78]
[1761630675105,0.44832549,4074.0,4073.9,0.78]
[1761630675407,1.74145062,4077.3,4077.1,0.44148]
[1761630675607,0.2266,4077.5,4077.4,0.44145]
[1761630675811,41.3542,4077.5,4077.4,0.99035]
[1761630676105,41.3542,4077.5,4077.4,1.22145]
[1761630676302,0.55667474,4077.5,4077.4,1.6593607]
[1761630676499,0.91257474,4077.5,4077.4,1.95790257]
[1761630676696,0.91257474,4077.5,4077.4,0.63970381]
[1761630676901,41.71257474,4077.5,4077.4,0.63970381]
[1761630680103,41.71257474,4077.5,4077.4,0.00288408]
[1761630680300,41.71257474,4077.5,4077.4,0.67344413]
[1761630680706,0.1092,4077.0,4076.3,1.31824277]
[1761630680899,0.1092,4076.4,4076.3,1.31824277]
[1761630681103,0.1092,4076.4,4076.3,0.87666277]
[1761630681304,0.1638,4076.4,4076.2,0.87666277]
[1761630681510,40.8,4076.3,4076.2,0.87666277]
[1761630681708,40.8,4076.3,4076.2,0.00247147]
[1761630681908,40.8,4076.3,4076.2,0.32457147]
[1761630684711,0.0546,4076.5,4076.4,0.4543]
[1761630685106,40.8546,4076.5,4076.4,0.4543]
[1761630685414,40.8,4076.5,4076.4,0.9122]
[1761630686110,0.00247474,4077.5,4076.4,0.1322]
[1761630686413,0.0546,4077.2,4077.1,0.5489]
[1761630686909,0.00247474,4077.5,4077.2,0.3221]
[1761630687114,0.00247474,4077.5,4077.4,0.5489]
[1761630687515,0.00247474,4077.5,4077.4,0.78]
[1761630687716,40.80247474,4077.5,4077.4,0.78]
[1761630688413,40.80247474,4077.5,4077.4,0.3221]
[1761630689010,40.80247474,4077.5,4077.4,0.5489]
[1761630689411,0.1638,4077.1,4076.9,0.87355336]
[1761630689711,0.0546,4077.0,4076.7,0.87355336]
[1761630690011,0.1092,4076.7,4076.5,0.3221]
[1761630690811,0.1638,4076.7,4076.5,0.3221]
[1761630691206,0.0546,4076.6,4076.3,0.87355336]
[1761630691407,0.1092,4076.4,4076.3,0.3221]
[1761630691815,40.9092,4076.4,4076.3,0.3221]
[1761630692315,0.1638,4076.3,4076.2,0.00247147]
[1761630692619,0.1638,4076.3,4076.2,0.66679449]
[1761630692818,0.1638,4076.3,4076.2,0.00247147]
[1761630693416,0.1638,4076.3,4076.2,0.66694616]
[1761630693613,0.1092,4076.3,4076.2,0.98904616]
[1761630694114,0.1092,4076.4,4076.3,0.3221]
[1761630694314,0.1092,4076.4,4076.3,0.98657469]
[1761630695511,40.9092,4076.4,4076.3,0.98657469]
[1761630696322,40.9092,4076.4,4076.3,1.21337469]
[1761630696815,40.9092,4076.4,4076.3,2.30092805]
[1761630696816,40.8,4076.4,4076.3,2.30092805]
[1761630697014,40.8,4076.4,4076.3,1.42737469]
[1761630697412,40.8,4076.4,4076.3,2.74557345]
[1761630698418,40.8,4076.4,4076.3,2.53157345]
[1761630699321,40.8,4076.4,4076.3,1.42737469]
[1761630699521,0.054,4077.6,4076.4,0.3414]
[1761630699822,0.054,4077.1,4077.0,0.6951]
[1761630700018,0.054,4077.1,4077.0,1.35957469]
[1761630700416,0.108,4077.1,4077.0,2.23412353]
[1761630700724,0.162,4077.1,4077.0,0.66447469]
[1761630701316,40.962,4077.1,4077.0,0.66447469]
[1761630702321,40.962,4077.1,4077.0,1.53902353]
[1761630702524,40.908,4077.1,4076.7,0.3414]
[1761630702725,40.908,4077.1,4077.0,0.1374]
[1761630703023,40.908,4077.1,4077.0,0.4788]
[1761630704528,40.908,4077.1,4076.2,0.00247147]
[1761630704722,3.7090937,4076.3,4076.2,0.00247147]
[1761630705117,11.7090937,4076.3,4076.2,0.00247147]
[1761630705316,44.5090937,4076.3,4076.2,0.00247147]
[1761630706636,44.5090937,4076.3,4076.2,0.34387147]
[1761630707619,44.5090937,4076.3,4076.2,0.3414]
[1761630708019,40.8,4076.3,4076.2,0.3414]
[1761630708531,40.8,4076.3,4076.2,0.34355347]
[1761630714931,40.8,4076.3,4076.2,0.77385347]
[1761630720625,40.8,4076.3,4076.2,0.34355347]
[1761630721033,40.8,4076.3,4075.8,0.1322]
[1761630721238,3.7090937,4075.9,4075.8,0.1322]
[1761630721828,44.5090937,4075.9,4075.8,0.1322]
[1761630722136,40.8,4075.9,4075.8,0.13524805]
[1761630722938,3.32242352,4077.3,4076.4,0.1374]
[1761630722939,22.09,4076.9,4076.4,0.1374]
[1761630723243,22.09,4076.9,4076.5,0.3414]
[1761630723535,22.09,4076.9,4076.4,0.1374]
[1761630723931,40.8,4076.5,4076.4,0.1374]
[1761630724431,44.5090937,4076.5,4076.4,0.1374]
[1761630725440,44.5090937,4076.5,4076.4,0.4834]
[1761630726639,44.5090937,4076.5,4076.4,0.1353]
[1761630726940,44.5090937,4076.5,4075.8,0.13524805]
[1761630727138,3.7090937,4075.9,4075.8,0.13524805]
[1761630727536,2.454,4076.8,4076.4,0.1353]
[1761630727739,3.7090937,4077.3,4076.4,0.1353]
[1761630727938,40.8,4077.2,4077.0,0.1353]
[1761630728135,40.8,4077.2,4076.4,0.1353]
[1761630728136,3.7090937,4077.1,4076.4,0.1353]
[1761630728343,3.7090937,4076.5,4075.8,0.13524805]
[1761630728637,3.7090937,4075.9,4075.5,0.4627]
[1761630728836,44.5090937,4075.9,4074.9,0.3305]
[1761630729036,3.7090937,4075.0,4074.9,0.3305]
[1761630729232,3.7090937,4075.0,4074.9,0.5499]
[1761630729743,44.5090937,4075.0,4074.9,0.55166149]
[1761630730241,44.5090937,4075.0,4074.9,0.33226149]
[1761630730638,40.8,4075.0,4074.9,0.77376149]
[1761630735243,44.5090937,4075.0,4074.9,1.87337438]
[1761630735445,44.5090937,4075.0,4074.9,1.21342121]
[1761630735640,44.5090937,4075.0,4074.9,0.33226149]
[1761630736243,44.5090937,4075.0,4074.9,0.3305]
[1761630736244,40.8,4075.0,4074.9,0.3305]
[1761630737251,40.8,4075.0,4074.9,0.33299348]
[1761630738754,40.8,4075.0,4074.9,0.55239348]
[1761630740444,40.8,4075.0,4074.9,0.33299348]
[1761630741848,45.19558566,4075.0,4074.9,0.33299348]
[1761630744457,40.8,4075.0,4074.9,0.33299348]
[1761630746145,40.8,4075.0,4074.9,0.00249348]
[1761630746550,40.8,4075.0,4074.6,0.1353]
[1761630746756,4.39558566,4074.7,4074.0,0.1353]
[1761630747053,4.39558566,4074.1,4074.0,0.4658]
[1761630747250,45.19558566,4074.1,4074.0,0.4658]
[1761630747554,45.19741924,4074.1,4074.0,0.46821989]
[1761630748652,40.80183358,4074.1,4074.0,0.68761989]
[1761630748855,40.80183358,4074.1,4074.0,0.46821989]
[1761630749251,40.80183358,4074.1,4074.0,0.68761989]
[1761630749547,40.80183358,4074.1,4074.0,1.57010065]
[1761630749854,40.80183358,4074.1,4074.0,0.90971989]
[1761630750553,40.80183358,4074.1,4074.0,0.68761989]
[1761630751153,40.80183358,4074.1,4074.0,0.90971989]
[1761630751555,40.80183358,4074.1,4074.0,1.57010065]
[1761630751855,40.80183358,4074.1,4074.0,0.90971989]
[1761630755457,40.80183358,4074.1,4074.0,2.23143278]
[1761630759259,40.80183358,4074.1,4074.0,0.90971989]
[1761630762064,0.00183358,4074.1,4074.0,0.90971989]
[1761630762660,0.00183358,4074.1,4074.0,9.35154989]
[1761630762862,4.39558566,4076.3,4076.0,0.1353]
[1761630763060,4.39558566,4076.3,4075.5,0.1353]
[1761630763260,4.39558566,4075.6,4075.3,0.66089496]
[1761630763460,4.39558566,4075.6,4075.5,0.1353]
[1761630763870,45.19761534,4075.6,4075.5,0.1353]
[1761630765066,45.19761534,4075.6,4075.5,0.461]
[1761630766365,45.19761534,4075.6,4075.3,0.66097403]
[1761630766964,45.19761534,4075.6,4075.3,0.98667403]
[1761630767166,45.19761534,4075.6,4075.5,0.1353]
[1761630767766,40.80202968,4075.6,4075.5,0.461]
[1761630769872,40.80202968,4075.6,4075.5,0.6751]
[1761630770466,40.80202968,4075.6,4075.5,0.9004]
[1761630770666,40.80202968,4075.6,4075.5,1.56137403]
[1761630771067,40.80202968,4075.6,4075.5,0.9004]
[1761630771768,40.80202968,4075.6,4075.5,1.12141003]
[1761630772070,40.80202968,4075.6,4075.5,0.6751]
[1761630772373,40.80202968,4075.6,4075.5,1.33536837]
[1761630774273,40.80202968,4075.6,4075.5,1.12126837]
[1761630774571,43.25802968,4075.6,4074.5,1.27534083]
[1761630774767,43.25802968,4075.6,4073.6,3.06624128]
[1761630774768,2.456,4074.5,4073.6,4.89109804]
[1761630774967,2.456,4074.5,4073.5,0.1353]
[1761630774968,4.39558566,4073.7,4073.5,0.1353]
[1761630775166,40.8,4073.6,4073.5,0.1353]
[1761630775367,41.37287716,4073.6,4073.5,0.1353]
[1761630775775,41.37287716,4073.6,4073.5,0.13772641]
[1761630776163,41.5703543,4073.6,4073.5,0.13772641]
[1761630776367,49.5703543,4073.6,4073.5,0.13772641]
[1761630776566,4.39558566,4073.9,4073.5,0.13772641]
[1761630776773,0.57260202,4073.8,4073.5,0.13772641]
[1761630776973,0.57260202,4073.7,4073.6,0.3257]
[1761630777167,4.39558566,4073.9,4073.6,0.3257]
[1761630777168,0.57260202,4073.8,4073.6,0.3257]
[1761630777475,40.8,4073.7,4073.6,0.3257]
[1761630777669,41.3725128,4073.7,4073.6,0.3257]
[1761630777876,40.8,4073.7,4073.6,0.3257]
[1761630778674,40.8,4073.7,4073.6,0.5398]
[1761630779366,40.8,4073.7,4073.6,0.3257]
[1761630780768,40.8,4073.7,4073.6,1.39938231]
[1761630781175,40.8,4073.7,4073.6,0.3257]
[1761630781176,45.19558566,4073.7,4073.6,0.3257]
[1761630781573,45.19558566,4073.7,4073.6,1.39938231]
[1761630782265,40.8,4073.7,4073.6,1.39938231]
[1761630782466,4.39558566,4074.4,4074.1,0.3257]
[1761630782670,4.39558566,4074.4,4074.3,0.3257]
[1761630782866,4.39558566,4074.4,4074.3,0.7651]
[1761630783466,45.19558566,4074.4,4074.3,0.7651]
[1761630783678,40.8,4074.4,4074.3,1.39938231]
[1761630783876,45.19558566,4074.4,4074.3,0.3257]
[1761630785173,45.76772877,4074.4,4074.3,0.3257]
[1761630785967,45.19558566,4074.4,4074.3,0.3257]
[1761630786477,40.8,4074.4,4074.3,0.6522]
[1761630787775,41.3721908,4074.4,4073.5,0.13772641]
[1761630787982,4.39558566,4073.6,4073.5,0.13772641]
[1761630788782,45.19558566,4073.6,4073.5,0.13772641]
[1761630789683,45.19558566,4073.6,4073.5,0.67592641]
[1761630794486,45.19558566,4073.6,4073.1,0.5382]
[1761630794688,0.57140176,4073.5,4073.1,0.5382]
[1761630794882,0.57140176,4073.4,4072.8,0.02455313]
[1761630795087,40.8,4073.1,4072.8,0.02455313]
[1761630795480,40.8,4073.1,4073.0,0.13761369]
[1761630795682,41.3713212,4073.1,4073.0,0.67581369]
[1761630795883,41.3713212,4073.1,4072.8,0.02455313]
[1761630796078,4.39558566,4072.9,4072.5,0.1353]
[1761630796489,4.39558566,4072.9,4072.0,0.2015]
[1761630796793,45.19558566,4072.1,4072.0,0.2015]
[1761630796994,45.19853496,4072.1,4072.0,0.20349323]
[1761630797388,45.19853496,4072.1,4071.5,0.2015]
[1761630797689,45.19853496,4072.1,4071.6,0.63428231]
[1761630797995,45.19853496,4072.1,4072.0,0.2015]
[1761630798302,45.19853496,4072.1,4072.0,0.74266356]
[1761630798684,45.19853496,4072.1,4072.0,0.00296356]
[1761630798891,45.19853496,4072.1,4071.5,0.7397]
[1761630799088,45.19853496,4072.1,4071.6,1.17248231]
[1761630799284,45.19853496,4072.1,4071.7,0.5382]
[1761630799483,45.19853496,4072.1,4072.0,0.2015]
[1761630799683,45.19853496,4072.1,4071.5,0.7397]
[1761630799985,45.19853496,4072.1,4071.5,0.74254246]
[1761630801595,0.59529552,4072.0,4071.5,0.20434246]
[1761630801896,0.0029493,4072.1,4072.0,0.7397]
[1761630802089,4.39853496,4072.1,4072.0,0.7397]
[1761630802287,45.79407792,4072.1,4072.0,0.7397]
[1761630802597,45.19697582,4072.1,4072.0,0.7397]
[1761630802892,45.79251107,4072.1,4071.5,0.54114246]
[1761630803195,45.19697582,4072.1,4071.6,0.63428231]
[1761630803397,0.5958435,4072.0,4071.6,0.63428231]
[1761630803593,45.19697582,4072.1,4071.6,0.97108231]
[1761630803889,45.19697582,4072.1,4071.5,0.20434246]
[1761630803890,0.1211,4071.6,4071.5,0.87954246]
[1761630804195,3.71932589,4071.7,4071.5,0.87954246]
[1761630804992,3.71932589,4071.7,4071.6,1.2134]
[1761630805392,3.84042589,4071.7,4071.6,1.2134]
[1761630805988,3.71932589,4071.7,4071.6,1.2134]
[1761630806688,3.84042589,4071.7,4071.6,1.2134]
[1761630806888,0.2064,4071.5,4070.5,0.2015]
[1761630807183,4.60452589,4071.1,4071.0,0.6752]
[1761630807792,45.40452589,4071.1,4071.0,0.6752]
[1761630807997,44.51932589,4071.1,4071.0,0.87942182]
[1761630808893,44.51932589,4071.1,4071.0,1.41762182]
[1761630809093,40.8,4071.1,4071.0,1.41762182]
[1761630809895,41.3374,4071.1,4071.0,1.41762182]
[1761630810096,41.3374,4071.1,4071.0,1.21612182]
[1761630810300,40.8,4071.1,4071.0,1.21612182]
[1761630810894,41.3374,4071.1,4071.0,0.33952182]
[1761630811197,0.5374,4070.8,4070.4,1.2134]
[1761630811394,4.06712589,4070.8,4070.7,1.2134]
[1761630811594,4.93342589,4070.8,4070.7,1.2134]
[1761630811795,2.27702639,4070.8,4070.7,1.2134]
[1761630812299,2.27702639,4070.8,4070.7,1.2154304]
[1761630812891,3.33995278,4070.8,4070.7,0.0020304]
[1761630813089,2.27702639,4070.8,4070.7,0.0020304]
[1761630813299,2.27702639,4070.8,4070.7,1.2154304]
[1761630813594,1.73962639,4070.8,4070.7,1.2154304]
[1761630813902,2.27702639,4070.8,4070.7,1.2154304]
[1761630814202,3.33995278,4070.8,4070.7,0.6772304]
[1761630814999,2.27702639,4070.8,4070.7,0.6772304]
[1761630815600,3.33995278,4070.8,4070.7,0.3388304]
[1761630816296,3.33995278,4070.8,4069.8,0.9392]
[1761630816297,0.9664,4069.9,4069.8,0.9392]
[1761630816494,2.37882639,4069.9,4069.8,0.9392]
[1761630816698,2.37882639,4069.9,4069.8,1.2733]